[Event "Titled Tuesday Blitz April 4 Late 2023"]
[White "Romkachess"]
[Black "Jocev, Milan"]
[BlackFideId "900680"]
[WhiteElo "2456"]
[BlackElo "2304"]
[Result "1-0"]
[Round "06"]
[TimeControl "180+2"]
[Date "2023.04.04"]
[WhiteClock "0:01:31"]
[BlackClock "0:01:22"]

1. e4 {[%clk 0:03:00]}  c6 {[%clk 0:02:58]} 2. d4 {[%clk 0:02:59]}  d5 {[%clk 0:02:59]} 3. Nc3 {[%clk 0:02:59]}  g6 {[%clk 0:02:58]} 4. h4 {[%clk 0:02:57]}  h5 {[%clk 0:02:56]} 5. Nf3 {[%clk 0:02:57]}  Nf6 {[%clk 0:02:52]} 6. e5 {[%clk 0:02:56]}  Ng4 {[%clk 0:02:52]} 7. Bg5 {[%clk 0:02:53]}  Bh6 {[%clk 0:02:50]} 8. Qd2 {[%clk 0:02:53]}  Bf5 {[%clk 0:02:43]} 9. O-O-O {[%clk 0:02:50]}  Qa5 {[%clk 0:02:42]} 10. Kb1 {[%clk 0:02:47]}  Na6 {[%clk 0:02:40]} 11. Bxh6 {[%clk 0:02:40]}  Nxh6 {[%clk 0:02:38]} 12. Bd3 {[%clk 0:02:40]}  Bxd3 {[%clk 0:02:30]} 13. Qxd3 {[%clk 0:02:35]}  Nc7 {[%clk 0:02:30]} 14. Ng5 {[%clk 0:02:28]}  e6 {[%clk 0:02:25]} 15. f3 {[%clk 0:02:25]}  O-O-O {[%clk 0:02:23]} 16. Ne2 {[%clk 0:02:24]}  Kb8 {[%clk 0:02:21]} 17. Qd2 {[%clk 0:02:19]}  Qxd2 {[%clk 0:02:13]} 18. Rxd2 {[%clk 0:02:19]}  Nf5 {[%clk 0:02:14]} 19. Nxf7 {[%clk 0:02:12]}  Rdf8 {[%clk 0:02:08]} 20. Nxh8 {[%clk 0:02:13]}  Rxh8 {[%clk 0:02:09]} 21. Nf4 {[%clk 0:01:57]}  Ne7 {[%clk 0:02:06]} 22. Nd3 {[%clk 0:01:52]}  b6 {[%clk 0:02:05]} 23. g4 {[%clk 0:01:51]}  Rf8 {[%clk 0:02:03]} 24. Rf2 {[%clk 0:01:48]}  Kc8 {[%clk 0:01:55]} 25. Rg1 {[%clk 0:01:46]}  Kd7 {[%clk 0:01:51]} 26. c3 {[%clk 0:01:47]}  Ne8 {[%clk 0:01:48]} 27. gxh5 {[%clk 0:01:46]}  gxh5 {[%clk 0:01:48]} 28. Rg5 {[%clk 0:01:46]}  Rh8 {[%clk 0:01:43]} 29. Nf4 {[%clk 0:01:47]}  Nf5 {[%clk 0:01:32]} 30. Rxh5 {[%clk 0:01:43]}  Rxh5 {[%clk 0:01:26]} 31. Nxh5 {[%clk 0:01:44]}  Nxh4 {[%clk 0:01:27]} 32. Ng3 {[%clk 0:01:36]}  Ke7 {[%clk 0:01:22]} 33. Rh2 {[%clk 0:01:31]} 1-0


[Site "https://www.chess.com"]

[Event "Titled Tuesday Blitz April 4 Late 2023"]
[White "Di Berardino, Diego Rafael"]
[Black "Gerbelli Neto, Eduardo"]
[WhiteFideId "2105446"]
[BlackFideId "2103281"]
[WhiteElo "2432"]
[BlackElo "2178"]
[Result "1-0"]
[Round "06"]
[TimeControl "180+2"]
[Date "2023.04.04"]
[WhiteClock "0:00:06"]
[BlackClock "0:00:07"]

1. e4 {[%clk 0:02:58]}  e5 {[%clk 0:02:58]} 2. Nf3 {[%clk 0:02:56]}  Nc6 {[%clk 0:02:57]} 3. Bb5 {[%clk 0:02:49]}  a6 {[%clk 0:02:57]} 4. Ba4 {[%clk 0:02:49]}  Nf6 {[%clk 0:02:53]} 5. O-O {[%clk 0:02:49]}  b5 {[%clk 0:02:48]} 6. Bb3 {[%clk 0:02:49]}  Be7 {[%clk 0:02:48]} 7. Re1 {[%clk 0:02:45]}  O-O {[%clk 0:02:42]} 8. d4 {[%clk 0:02:43]}  Nxd4 {[%clk 0:02:37]} 9. Nxd4 {[%clk 0:02:42]}  exd4 {[%clk 0:02:37]} 10. e5 {[%clk 0:02:42]}  Ne8 {[%clk 0:02:37]} 11. Qxd4 {[%clk 0:02:25]}  c5 {[%clk 0:02:27]} 12. Qe4 {[%clk 0:02:19]}  Nc7 {[%clk 0:02:22]} 13. c3 {[%clk 0:02:13]}  Rb8 {[%clk 0:02:16]} 14. Bc2 {[%clk 0:02:08]}  g6 {[%clk 0:02:16]} 15. Bh6 {[%clk 0:02:09]}  Re8 {[%clk 0:02:15]} 16. Nd2 {[%clk 0:02:09]}  Bb7 {[%clk 0:02:14]} 17. Qg4 {[%clk 0:02:05]}  Ne6 {[%clk 0:02:14]} 18. Ne4 {[%clk 0:02:03]}  Bxe4 {[%clk 0:02:08]} 19. Bxe4 {[%clk 0:02:00]}  Bg5 {[%clk 0:02:09]} 20. Bxg5 {[%clk 0:01:55]}  Qxg5 {[%clk 0:02:10]} 21. Qxg5 {[%clk 0:01:46]}  Nxg5 {[%clk 0:02:11]} 22. Bc2 {[%clk 0:01:32]}  Ne6 {[%clk 0:02:04]} 23. Rad1 {[%clk 0:01:31]}  Red8 {[%clk 0:02:00]} 24. Rd6 {[%clk 0:01:28]}  a5 {[%clk 0:01:56]} 25. g3 {[%clk 0:01:27]}  b4 {[%clk 0:01:51]} 26. Bb3 {[%clk 0:01:19]}  Rbc8 {[%clk 0:01:32]} 27. Red1 {[%clk 0:01:18]}  c4 {[%clk 0:01:29]} 28. Bc2 {[%clk 0:01:09]}  Nc5 {[%clk 0:01:21]} 29. R1d4 {[%clk 0:01:02]}  b3 {[%clk 0:01:18]} 30. axb3 {[%clk 0:00:55]}  cxb3 {[%clk 0:01:18]} 31. Bb1 {[%clk 0:00:46]}  Kf8 {[%clk 0:01:15]} 32. f4 {[%clk 0:00:42]}  Ke7 {[%clk 0:01:15]} 33. g4 {[%clk 0:00:36]}  Rc6 {[%clk 0:01:07]} 34. R6d5 {[%clk 0:00:33]}  d6 {[%clk 0:00:35]} 35. Kf2 {[%clk 0:00:25]}  dxe5 {[%clk 0:00:35]} 36. Rxe5+ {[%clk 0:00:22]}  Ne6 {[%clk 0:00:35]} 37. Rxd8 {[%clk 0:00:15]}  Kxd8 {[%clk 0:00:36]} 38. f5 {[%clk 0:00:15]}  Nc5 {[%clk 0:00:29]} 39. Ke3 {[%clk 0:00:09]}  Kd7 {[%clk 0:00:29]} 40. Rd5+ {[%clk 0:00:09]}  Kc7 {[%clk 0:00:29]} 41. Rd4 {[%clk 0:00:10]}  Kb6 {[%clk 0:00:29]} 42. Bd3 {[%clk 0:00:09]}  a4 {[%clk 0:00:27]} 43. Rb4+ {[%clk 0:00:10]}  Kc7 {[%clk 0:00:26]} 44. Bc4 {[%clk 0:00:09]}  f6 {[%clk 0:00:24]} 45. Kd4 {[%clk 0:00:08]}  Kd6 {[%clk 0:00:22]} 46. Bd5 {[%clk 0:00:06]}  Ra6 {[%clk 0:00:20]} 47. Rb5 {[%clk 0:00:05]}  Nd7 {[%clk 0:00:18]} 48. c4 {[%clk 0:00:05]}  Ne5 {[%clk 0:00:16]} 49. c5+ {[%clk 0:00:04]}  Kc7 {[%clk 0:00:14]} 50. Rb7+ {[%clk 0:00:05]}  Kc8 {[%clk 0:00:14]} 51. Rb4 {[%clk 0:00:05]}  Nxg4 {[%clk 0:00:13]} 52. Bb7+ {[%clk 0:00:05]}  Kc7 {[%clk 0:00:12]} 53. Bxa6 {[%clk 0:00:06]}  gxf5 {[%clk 0:00:12]} 54. Rxa4 {[%clk 0:00:06]}  Nxh2 {[%clk 0:00:11]} 55. Bc4 {[%clk 0:00:06]}  Nf3+ {[%clk 0:00:11]} 56. Kd5 {[%clk 0:00:06]}  Ne5 {[%clk 0:00:12]} 57. Ra7+ {[%clk 0:00:06]}  Kb8 {[%clk 0:00:12]} 58. Rxh7 {[%clk 0:00:06]}  f4 {[%clk 0:00:12]} 59. Bxb3 {[%clk 0:00:06]}  f3 {[%clk 0:00:12]} 60. Bd1 {[%clk 0:00:06]}  f2 {[%clk 0:00:12]} 61. Be2 {[%clk 0:00:07]}  Kc8 {[%clk 0:00:09]} 62. Rh2 {[%clk 0:00:07]}  Ng4 {[%clk 0:00:09]} 63. Rh8+ {[%clk 0:00:06]}  Kd7 {[%clk 0:00:09]} 64. Bxg4+ {[%clk 0:00:06]}  Kc7 {[%clk 0:00:07]} 65. Be2 {[%clk 0:00:06]} 1-0


[Site "https://www.chess.com"]

[Event "Titled Tuesday Blitz April 4 Late 2023"]
[White "Arun, Siddharth"]
[Black "Ambartsumova, Karina"]
[WhiteFideId "2079178"]
[BlackFideId "4166299"]
[WhiteElo "2343"]
[BlackElo "2240"]
[Result "0-1"]
[Round "06"]
[TimeControl "180+2"]
[Date "2023.04.04"]
[WhiteClock "0:00:52"]
[BlackClock "0:00:14"]

1. d4 {[%clk 0:03:00]}  Nf6 {[%clk 0:02:59]} 2. Nc3 {[%clk 0:03:00]}  d5 {[%clk 0:02:59]} 3. Bf4 {[%clk 0:03:00]}  g6 {[%clk 0:02:59]} 4. e3 {[%clk 0:03:00]}  Bg7 {[%clk 0:03:00]} 5. Nb5 {[%clk 0:03:01]}  Na6 {[%clk 0:02:59]} 6. h3 {[%clk 0:03:00]}  Ne4 {[%clk 0:02:57]} 7. Nf3 {[%clk 0:02:57]}  c6 {[%clk 0:02:57]} 8. Nc3 {[%clk 0:02:57]}  Qa5 {[%clk 0:02:49]} 9. Bxa6 {[%clk 0:02:48]}  bxa6 {[%clk 0:02:41]} 10. O-O {[%clk 0:02:46]}  Nxc3 {[%clk 0:02:40]} 11. bxc3 {[%clk 0:02:45]}  Qxc3 {[%clk 0:02:41]} 12. Rb1 {[%clk 0:02:45]}  O-O {[%clk 0:02:39]} 13. Rb3 {[%clk 0:02:40]}  Qa5 {[%clk 0:02:38]} 14. Qb1 {[%clk 0:02:38]}  Bf5 {[%clk 0:02:35]} 15. Be5 {[%clk 0:02:29]}  c5 {[%clk 0:02:24]} 16. Rb7 {[%clk 0:02:24]}  Rfe8 {[%clk 0:02:16]} 17. Bxg7 {[%clk 0:02:24]}  Kxg7 {[%clk 0:02:17]} 18. Ne5 {[%clk 0:02:24]}  Rac8 {[%clk 0:02:11]} 19. Qb2 {[%clk 0:02:09]}  Kg8 {[%clk 0:01:29]} 20. Rxa7 {[%clk 0:02:03]}  cxd4 {[%clk 0:01:27]} 21. Qxd4 {[%clk 0:02:03]}  Qxa2 {[%clk 0:01:13]} 22. Ra1 {[%clk 0:01:57]}  Qxc2 {[%clk 0:01:11]} 23. R1xa6 {[%clk 0:01:53]}  Qe2 {[%clk 0:01:07]} 24. Nc6 {[%clk 0:01:47]}  Qe1+ {[%clk 0:00:55]} 25. Kh2 {[%clk 0:01:47]}  Rxc6 {[%clk 0:00:23]} 26. Rxc6 {[%clk 0:01:44]}  Qxf2 {[%clk 0:00:23]} 27. Qe5 {[%clk 0:01:06]}  Be4 {[%clk 0:00:19]} 28. Qg3 {[%clk 0:01:06]}  Qf5 {[%clk 0:00:19]} 29. Rcc7 {[%clk 0:01:00]}  Qf6 {[%clk 0:00:17]} 30. Rcb7 {[%clk 0:00:56]}  h5 {[%clk 0:00:18]} 31. Rb8 {[%clk 0:00:56]}  Rxb8 {[%clk 0:00:17]} 32. Qxb8+ {[%clk 0:00:56]}  Kg7 {[%clk 0:00:18]} 33. Qc7 {[%clk 0:00:53]}  Qg5 {[%clk 0:00:14]} 34. Qxe7 {[%clk 0:00:52]}  Qxg2# {[%clk 0:00:14]} 0-1


[Site "https://www.chess.com"]

[Event "Titled Tuesday Blitz April 4 Late 2023"]
[White "feuervogel1000000"]
[Black "Rastbod, Ali"]
[BlackFideId "12567477"]
[WhiteElo "2283"]
[BlackElo "2248"]
[Result "1-0"]
[Round "06"]
[TimeControl "180+2"]
[Date "2023.04.04"]
[WhiteClock "0:00:14"]
[BlackClock "0:00:03"]

1. e4 {[%clk 0:03:00]}  Nc6 {[%clk 0:02:56]} 2. d4 {[%clk 0:03:00]}  d5 {[%clk 0:02:56]} 3. e5 {[%clk 0:02:58]}  Bf5 {[%clk 0:02:56]} 4. Nf3 {[%clk 0:02:57]}  e6 {[%clk 0:02:56]} 5. Bd3 {[%clk 0:02:56]}  Bxd3 {[%clk 0:02:48]} 6. Qxd3 {[%clk 0:02:57]}  Nb4 {[%clk 0:02:49]} 7. Qe2 {[%clk 0:02:57]}  c5 {[%clk 0:02:48]} 8. c3 {[%clk 0:02:57]}  Nc6 {[%clk 0:02:48]} 9. O-O {[%clk 0:02:56]}  Rc8 {[%clk 0:02:46]} 10. Be3 {[%clk 0:02:52]}  Qb6 {[%clk 0:02:38]} 11. Nbd2 {[%clk 0:02:31]}  cxd4 {[%clk 0:02:34]} 12. cxd4 {[%clk 0:02:31]}  Nge7 {[%clk 0:02:34]} 13. a3 {[%clk 0:02:30]}  a5 {[%clk 0:02:31]} 14. g4 {[%clk 0:02:27]}  h5 {[%clk 0:02:29]} 15. h3 {[%clk 0:02:26]}  Ng6 {[%clk 0:02:26]} 16. Rac1 {[%clk 0:02:04]}  Be7 {[%clk 0:02:25]} 17. Kg2 {[%clk 0:02:02]}  a4 {[%clk 0:02:09]} 18. Nb1 {[%clk 0:01:52]}  Ra8 {[%clk 0:01:54]} 19. Nc3 {[%clk 0:01:49]}  Qa6 {[%clk 0:01:54]} 20. Qxa6 {[%clk 0:01:47]}  Rxa6 {[%clk 0:01:55]} 21. Nb5 {[%clk 0:01:47]}  Kd7 {[%clk 0:01:54]} 22. Nc3 {[%clk 0:01:45]}  Bd8 {[%clk 0:01:31]} 23. Ne2 {[%clk 0:01:27]}  b5 {[%clk 0:01:11]} 24. Ne1 {[%clk 0:01:24]}  Be7 {[%clk 0:01:00]} 25. f4 {[%clk 0:01:22]}  hxg4 {[%clk 0:00:44]} 26. hxg4 {[%clk 0:01:19]}  Rb8 {[%clk 0:00:44]} 27. Nd3 {[%clk 0:01:10]}  b4 {[%clk 0:00:44]} 28. f5 {[%clk 0:01:06]}  Nf8 {[%clk 0:00:24]} 29. fxe6+ {[%clk 0:00:58]}  fxe6 {[%clk 0:00:24]} 30. Nc5+ {[%clk 0:00:46]}  Bxc5 {[%clk 0:00:24]} 31. Rxc5 {[%clk 0:00:47]}  bxa3 {[%clk 0:00:22]} 32. bxa3 {[%clk 0:00:48]}  Rb3 {[%clk 0:00:20]} 33. Nc3 {[%clk 0:00:44]}  Ng6 {[%clk 0:00:16]} 34. Rf7+ {[%clk 0:00:44]}  Nce7 {[%clk 0:00:15]} 35. Bg5 {[%clk 0:00:36]}  Rc6 {[%clk 0:00:14]} 36. Nxa4 {[%clk 0:00:35]}  Rxa3 {[%clk 0:00:14]} 37. Bxe7 {[%clk 0:00:28]}  Nxe7 {[%clk 0:00:08]} 38. Rxc6 {[%clk 0:00:27]}  Kxc6 {[%clk 0:00:07]} 39. Rxe7 {[%clk 0:00:28]}  Rxa4 {[%clk 0:00:07]} 40. Rxe6+ {[%clk 0:00:28]}  Kb5 {[%clk 0:00:08]} 41. Rg6 {[%clk 0:00:27]}  Rxd4 {[%clk 0:00:07]} 42. Rxg7 {[%clk 0:00:27]}  Re4 {[%clk 0:00:08]} 43. Rg5 {[%clk 0:00:26]}  Kc4 {[%clk 0:00:06]} 44. Kf3 {[%clk 0:00:25]}  Kd3 {[%clk 0:00:04]} 45. Rf5 {[%clk 0:00:22]}  d4 {[%clk 0:00:05]} 46. g5 {[%clk 0:00:22]}  Re1 {[%clk 0:00:04]} 47. g6 {[%clk 0:00:19]}  Rg1 {[%clk 0:00:05]} 48. Rf6 {[%clk 0:00:15]}  Rg5 {[%clk 0:00:05]} 49. Kf4 {[%clk 0:00:14]}  Rg1 {[%clk 0:00:04]} 50. e6 {[%clk 0:00:15]}  Kc2 {[%clk 0:00:04]} 51. e7 {[%clk 0:00:14]}  Rf1+ {[%clk 0:00:04]} 52. Ke5 {[%clk 0:00:14]}  Re1+ {[%clk 0:00:04]} 53. Kxd4 {[%clk 0:00:14]}  Rxe7 {[%clk 0:00:05]} 54. Rf7 {[%clk 0:00:14]}  Re6 {[%clk 0:00:04]} 55. g7 {[%clk 0:00:15]}  Rg6 {[%clk 0:00:05]} 56. Ke5 {[%clk 0:00:14]}  Kd3 {[%clk 0:00:05]} 57. Kf5 {[%clk 0:00:13]}  Rg1 {[%clk 0:00:06]} 58. Kf6 {[%clk 0:00:14]}  Ke4 {[%clk 0:00:06]} 59. Rf8 {[%clk 0:00:14]}  Rf1+ {[%clk 0:00:06]} 60. Ke7 {[%clk 0:00:14]}  Ra1 {[%clk 0:00:03]} 61. g8=Q {[%clk 0:00:14]} 1-0


[Site "https://www.chess.com"]

[Event "Titled Tuesday Blitz April 4 Late 2023"]
[White "Antonova, Nadezhda"]
[Black "TimGrutter03"]
[WhiteFideId "14700182"]
[WhiteElo "1765"]
[BlackElo "2577"]
[Result "0-1"]
[Round "06"]
[TimeControl "180+2"]
[Date "2023.04.04"]
[WhiteClock "0:01:00"]
[BlackClock "0:00:42"]

1. Nf3 {[%clk 0:02:59]}  g6 {[%clk 0:02:48]} 2. d4 {[%clk 0:02:58]}  Bg7 {[%clk 0:02:48]} 3. Nbd2 {[%clk 0:02:58]}  d6 {[%clk 0:02:48]} 4. e4 {[%clk 0:02:58]}  a6 {[%clk 0:02:45]} 5. a4 {[%clk 0:02:58]}  b6 {[%clk 0:02:45]} 6. Bd3 {[%clk 0:02:58]}  Bb7 {[%clk 0:02:45]} 7. O-O {[%clk 0:02:58]}  e6 {[%clk 0:02:44]} 8. Re1 {[%clk 0:02:58]}  Ne7 {[%clk 0:02:44]} 9. c3 {[%clk 0:02:58]}  O-O {[%clk 0:02:45]} 10. Nf1 {[%clk 0:02:56]}  Nd7 {[%clk 0:02:45]} 11. Ng3 {[%clk 0:02:52]}  c5 {[%clk 0:02:41]} 12. Qe2 {[%clk 0:02:50]}  Nc6 {[%clk 0:02:30]} 13. Be3 {[%clk 0:02:48]}  cxd4 {[%clk 0:02:28]} 14. Nxd4 {[%clk 0:02:47]}  Nde5 {[%clk 0:02:26]} 15. Bc2 {[%clk 0:02:41]}  Rc8 {[%clk 0:02:21]} 16. Rad1 {[%clk 0:02:40]}  Nxd4 {[%clk 0:02:17]} 17. Bxd4 {[%clk 0:02:39]}  Qc7 {[%clk 0:02:13]} 18. h4 {[%clk 0:02:32]}  h6 {[%clk 0:02:06]} 19. h5 {[%clk 0:02:30]}  g5 {[%clk 0:02:06]} 20. Nf1 {[%clk 0:02:16]}  Qc6 {[%clk 0:01:50]} 21. f3 {[%clk 0:02:13]}  b5 {[%clk 0:01:46]} 22. axb5 {[%clk 0:02:08]}  axb5 {[%clk 0:01:46]} 23. Ne3 {[%clk 0:01:59]}  Rb8 {[%clk 0:01:38]} 24. Bd3 {[%clk 0:01:48]}  Ba6 {[%clk 0:01:33]} 25. Nc2 {[%clk 0:01:47]}  Nxd3 {[%clk 0:01:27]} 26. Qxd3 {[%clk 0:01:44]}  b4 {[%clk 0:01:26]} 27. Qd2 {[%clk 0:01:35]}  bxc3 {[%clk 0:01:26]} 28. Bxc3 {[%clk 0:01:28]}  Bxc3 {[%clk 0:01:23]} 29. bxc3 {[%clk 0:01:25]}  Rb2 {[%clk 0:01:19]} 30. Qxd6 {[%clk 0:01:22]}  Qxc3 {[%clk 0:01:05]} 31. Ne3 {[%clk 0:01:15]}  Re2 {[%clk 0:00:52]} 32. Qxa6 {[%clk 0:01:05]}  Qxe3+ {[%clk 0:00:44]} 33. Kh2 {[%clk 0:01:00]}  Rxe1 {[%clk 0:00:42]} 0-1


[Site "https://www.chess.com"]

[Event "Titled Tuesday Blitz April 4 Late 2023"]
[White "Diaz Perez, Michel Alejandro"]
[Black "Poliakova, Varvara"]
[WhiteFideId "3517179"]
[BlackFideId "13518313"]
[WhiteElo "2334"]
[BlackElo "2075"]
[Result "1/2-1/2"]
[Round "06"]
[TimeControl "180+2"]
[Date "2023.04.04"]
[WhiteClock "0:00:06"]
[BlackClock "0:00:09"]

1. e4 {[%clk 0:03:00]}  d5 {[%clk 0:02:58]} 2. exd5 {[%clk 0:02:59]}  Qxd5 {[%clk 0:02:59]} 3. Nc3 {[%clk 0:02:58]}  Qd6 {[%clk 0:03:00]} 4. Nf3 {[%clk 0:02:56]}  c6 {[%clk 0:03:00]} 5. d4 {[%clk 0:02:56]}  Nf6 {[%clk 0:02:59]} 6. Bc4 {[%clk 0:02:55]}  Bg4 {[%clk 0:02:57]} 7. Be3 {[%clk 0:02:50]}  e6 {[%clk 0:02:55]} 8. h3 {[%clk 0:02:49]}  Bh5 {[%clk 0:02:54]} 9. a3 {[%clk 0:02:46]}  Nd5 {[%clk 0:02:54]} 10. Nxd5 {[%clk 0:02:44]}  cxd5 {[%clk 0:02:50]} 11. Bb5+ {[%clk 0:02:42]}  Nc6 {[%clk 0:02:51]} 12. O-O {[%clk 0:02:31]}  Be7 {[%clk 0:02:47]} 13. Re1 {[%clk 0:02:29]}  O-O {[%clk 0:02:44]} 14. c3 {[%clk 0:02:30]}  Na5 {[%clk 0:02:41]} 15. Be2 {[%clk 0:02:29]}  Rac8 {[%clk 0:02:39]} 16. Ne5 {[%clk 0:02:24]}  Bxe2 {[%clk 0:02:39]} 17. Qxe2 {[%clk 0:02:25]}  Nc4 {[%clk 0:02:30]} 18. Bf4 {[%clk 0:02:25]}  Qa6 {[%clk 0:02:28]} 19. Qg4 {[%clk 0:02:02]}  Nxe5 {[%clk 0:02:19]} 20. Bxe5 {[%clk 0:02:00]}  g6 {[%clk 0:02:15]} 21. Re3 {[%clk 0:01:55]}  h5 {[%clk 0:02:09]} 22. Qd1 {[%clk 0:01:51]}  Rc4 {[%clk 0:01:59]} 23. Rg3 {[%clk 0:01:50]}  Kh7 {[%clk 0:01:58]} 24. Qd2 {[%clk 0:01:46]}  Bd6 {[%clk 0:01:53]} 25. Re1 {[%clk 0:01:44]}  f6 {[%clk 0:01:44]} 26. Bf4 {[%clk 0:01:39]}  Bxf4 {[%clk 0:01:41]} 27. Qxf4 {[%clk 0:01:40]}  Kg7 {[%clk 0:01:39]} 28. Qh4 {[%clk 0:01:33]}  Qd6 {[%clk 0:01:35]} 29. Rge3 {[%clk 0:01:28]}  Re8 {[%clk 0:01:30]} 30. f4 {[%clk 0:01:24]}  f5 {[%clk 0:01:28]} 31. Rg3 {[%clk 0:01:20]}  Kf7 {[%clk 0:01:27]} 32. Qg5 {[%clk 0:01:19]}  Rg8 {[%clk 0:01:20]} 33. Rge3 {[%clk 0:01:18]}  Rc6 {[%clk 0:01:18]} 34. Qh6 {[%clk 0:01:18]}  Qd8 {[%clk 0:01:15]} 35. Rg3 {[%clk 0:01:11]}  Qf6 {[%clk 0:01:12]} 36. Qg5 {[%clk 0:01:07]}  Qxg5 {[%clk 0:01:12]} 37. Rxg5 {[%clk 0:01:08]}  h4 {[%clk 0:01:13]} 38. g3 {[%clk 0:01:06]}  hxg3 {[%clk 0:01:11]} 39. Rxg3 {[%clk 0:01:07]}  Kf6 {[%clk 0:01:10]} 40. Kf2 {[%clk 0:01:00]}  Rcc8 {[%clk 0:01:07]} 41. Reg1 {[%clk 0:00:58]}  Rg7 {[%clk 0:01:05]} 42. Ke3 {[%clk 0:00:57]}  Rh8 {[%clk 0:01:05]} 43. Kd3 {[%clk 0:00:57]}  Rh4 {[%clk 0:01:02]} 44. Ke3 {[%clk 0:00:57]}  b5 {[%clk 0:01:00]} 45. Kf3 {[%clk 0:00:56]}  a5 {[%clk 0:00:59]} 46. Ke3 {[%clk 0:00:43]}  Ke7 {[%clk 0:00:55]} 47. Kf3 {[%clk 0:00:30]}  Kd6 {[%clk 0:00:55]} 48. Rxg6 {[%clk 0:00:26]}  Rxg6 {[%clk 0:00:55]} 49. Rxg6 {[%clk 0:00:27]}  Rxh3+ {[%clk 0:00:56]} 50. Rg3 {[%clk 0:00:26]}  Rh1 {[%clk 0:00:50]} 51. Ke3 {[%clk 0:00:24]}  Rh2 {[%clk 0:00:48]} 52. b4 {[%clk 0:00:22]}  a4 {[%clk 0:00:49]} 53. Rg8 {[%clk 0:00:20]}  Ra2 {[%clk 0:00:48]} 54. Rb8 {[%clk 0:00:19]}  Rxa3 {[%clk 0:00:45]} 55. Kd3 {[%clk 0:00:17]}  Kc6 {[%clk 0:00:41]} 56. Rc8+ {[%clk 0:00:17]}  Kb7 {[%clk 0:00:39]} 57. Re8 {[%clk 0:00:16]}  Ra1 {[%clk 0:00:38]} 58. Rxe6 {[%clk 0:00:16]}  Rd1+ {[%clk 0:00:36]} 59. Kc2 {[%clk 0:00:16]}  Rf1 {[%clk 0:00:35]} 60. Re5 {[%clk 0:00:15]}  Rxf4 {[%clk 0:00:34]} 61. Rxd5 {[%clk 0:00:15]}  Kc6 {[%clk 0:00:34]} 62. Rc5+ {[%clk 0:00:16]}  Kb6 {[%clk 0:00:33]} 63. Re5 {[%clk 0:00:16]}  Rf2+ {[%clk 0:00:31]} 64. Kb1 {[%clk 0:00:14]}  f4 {[%clk 0:00:30]} 65. d5 {[%clk 0:00:14]}  Rd2 {[%clk 0:00:28]} 66. Rf5 {[%clk 0:00:12]}  Rf2 {[%clk 0:00:26]} 67. Rf6+ {[%clk 0:00:12]}  Kc7 {[%clk 0:00:26]} 68. Ka1 {[%clk 0:00:10]}  f3 {[%clk 0:00:22]} 69. Kb1 {[%clk 0:00:09]}  a3 {[%clk 0:00:19]} 70. Ka1 {[%clk 0:00:09]}  Kd7 {[%clk 0:00:18]} 71. d6 {[%clk 0:00:09]}  Rf1+ {[%clk 0:00:17]} 72. Ka2 {[%clk 0:00:08]}  f2 {[%clk 0:00:17]} 73. Rf3 {[%clk 0:00:03]}  Kxd6 {[%clk 0:00:15]} 74. Rf8 {[%clk 0:00:04]}  Kd5 {[%clk 0:00:15]} 75. Rf6 {[%clk 0:00:03]}  Kc4 {[%clk 0:00:14]} 76. Rf3 {[%clk 0:00:04]}  Rc1 {[%clk 0:00:05]} 77. Rxf2 {[%clk 0:00:04]}  Kxc3 {[%clk 0:00:04]} 78. Rf3+ {[%clk 0:00:02]}  Kxb4 {[%clk 0:00:04]} 79. Rb3+ {[%clk 0:00:03]}  Kc4 {[%clk 0:00:04]} 80. Rxa3 {[%clk 0:00:04]}  Rc2+ {[%clk 0:00:04]} 81. Kb1 {[%clk 0:00:03]}  Rh2 {[%clk 0:00:03]} 82. Rg3 {[%clk 0:00:03]}  b4 {[%clk 0:00:04]} 83. Rf3 {[%clk 0:00:03]}  Kb5 {[%clk 0:00:03]} 84. Rg3 {[%clk 0:00:04]}  Ka4 {[%clk 0:00:04]} 85. Rf3 {[%clk 0:00:04]}  b3 {[%clk 0:00:04]} 86. Rf8 {[%clk 0:00:04]}  Rh1+ {[%clk 0:00:05]} 87. Kb2 {[%clk 0:00:04]}  Rh2+ {[%clk 0:00:06]} 88. Kb1 {[%clk 0:00:04]}  Kb4 {[%clk 0:00:06]} 89. Rb8+ {[%clk 0:00:03]}  Ka3 {[%clk 0:00:06]} 90. Ra8+ {[%clk 0:00:04]}  Kb4 {[%clk 0:00:07]} 91. Rb8+ {[%clk 0:00:05]}  Kc3 {[%clk 0:00:08]} 92. Rc8+ {[%clk 0:00:05]}  Kb4 {[%clk 0:00:09]} 93. Rb8+ {[%clk 0:00:06]} 1/2-1/2


[Site "https://www.chess.com"]